{"text_format":"1","workbook":"xlsx","n_sheets":5,"sheets":["入力シート","Add_Plan_Style","使い方","エラーメッセージ一覧","OCTO-W9-0331-001.xsd"],"not_rendered":{"charts":0,"images":3,"macros":1,"external_links":1,"defined_names":2,"comments":0,"pivot_tables":0},"unopened":[],"bounds":{"document_bytes":16777216,"sheet_cells":100000,"rows_first":2000,"rows_last":500,"rows_between":2000,"halvings":0,"cell_chars":16384,"cell_head_chars":4096},"cells_cut":0,"cells_raw":0,"read":"whole","date_system":"1900"}

{"sheet":"入力シート","index":0,"n_rows":29,"n_cols":53,"rows_kept":29,"cut":false,"hidden":false,"merged":[[20,0,20,4],[22,1,22,3],[23,0,23,4],[25,1,25,3],[26,0,26,4],[1809,1,1809,2],[13,4,13,52],[3,5,3,13],[4,5,4,13],[5,4,5,9],[5,10,5,13],[6,6,6,9],[6,11,6,13],[7,6,7,9],[7,11,7,13],[8,6,8,9],[9,6,9,9],[10,6,10,9],[28,1,28,3],[17,0,17,4],[19,1,19,3]]}
[null,null,"直前計測型基準値内訳実績入力支援ツール"]
[]
[null,11145,null,null,"対象年月日",""]
[null,null,null,null,"読込ファイル名"]
[null,11245,null,null,"出力先"]
[null,null,null,null,"基本情報",null,null,null,null,null,"出力ファイル名情報"]
[null,null,null,null,null,"コード","名称▲",null,null,null,"XMLファイル名",{"$f":"\"W9_\"&F8&\"_\"&L8&\"_\"&L9&\"_\"&L10&\"_\"&L11&\".xml\"","v":"W9_0331__01__.xml"}]
[null,null,null,null,"情報区分","0331","直前計測型基準値内訳実績",null,null,null,"対象時期の開始日",{"$f":"IF(F3=\"\",\"\",F3)","v":""}]
[null,null,null,null,"提出先事業者","","",null,null,null,"約定対象開始コマ番号","01"]
[null,null,null,null,"送信事業者","","",null,null,null,"アグリゲータ用系統コード",{"$f":"IF(F11=\"\",\"\",F11)","v":""}]
[null,null,null,null,"提出者（アグリゲータ用系統コード）","","",null,null,null,"電源等コード",""]
[null,null,null,null,"運用モード","通常"]
[]
[null,null,null,null,"基準値内訳"]
[null,null,null,null,"対象各リスト・パターン"]
[null,null,null,null,"時刻コード","01","02","03","04","05","06","07","08","09","10","11","12","13","14","15","16","17","18","19","20","21","22","23","24","25","26","27","28","29","30","31","32","33","34","35","36","37","38","39","40","41","42","43","44","45","46","47","48"]
[null,"小売電気事業者コード","BGコード▲","機器点特定番号(高圧)","時間帯","0:00～0:30","0:30～1:00","1:00～1:30","1:30～2:00","2:00～2:30","2:30～3:00","3:00～3:30","3:30～4:00","4:00～4:30","4:30～5:00","5:00～5:30","5:30～6:00","6:00～6:30","6:30～7:00","7:00～7:30","7:30～8:00","8:00～8:30","8:30～9:00","9:00～9:30","9:30～10:00","10:00～10:30","10:30～11:00","11:00～11:30","11:30～12:00","12:00～12:30","12:30～13:00","13:00～13:30","13:30～14:00","14:00～14:30","14:30～15:00","15:00～15:30","15:30～16:00","16:00～16:30","16:30～17:00","17:00～17:30","17:30～18:00","18:00～18:30","18:30～19:00","19:00～19:30","19:30～20:00","20:00～20:30","20:30～21:00","21:00～21:30","21:30～22:00","22:00～22:30","22:30～23:00","23:00～23:30","23:30～24:00"]
["高圧受電点"]
["小売電気事業者1",null,null,null,"高圧受電点基準値(kWh)"]
["合計基準値","合計基準値＝Σ基準値内訳",null,null,"合計基準値（kWh）",{"$f":"SUM(F19:F19)","v":0},0,0,0,0,0,0,0,0,0,0,0,0,0,0,0,0,0,0,0,0,0,0,0,0,0,0,0,0,0,0,0,0,0,0,0,0,0,0,0,0,0,0,0,0,0,0,0]
["低圧受電点"]
["小売電気事業者1",null,null,null,"低圧受電点基準値(kWh)"]
["合計基準値","合計基準値＝Σ基準値内訳",null,null,"合計基準値（kWh）",{"$f":"SUM(F22:F22)","v":0},0,0,0,0,0,0,0,0,0,0,0,0,0,0,0,0,0,0,0,0,0,0,0,0,0,0,0,0,0,0,0,0,0,0,0,0,0,0,0,0,0,0,0,0,0,0,0]
["高圧機器点"]
["小売電気事業者1",null,null,null,"高圧機器点基準値(kWh)"]
["合計基準値","合計基準値＝Σ基準値内訳",null,null,"合計基準値（kWh）",{"$f":"SUM(F25:F25)","v":0},0,0,0,0,0,0,0,0,0,0,0,0,0,0,0,0,0,0,0,0,0,0,0,0,0,0,0,0,0,0,0,0,0,0,0,0,0,0,0,0,0,0,0,0,0,0,0]
["低圧機器点"]
["小売電気事業者1",null,null,null,"低圧機器点基準値(kWh)"]
["合計基準値","合計基準値＝Σ基準値内訳",null,null,"合計基準値（kWh）",{"$f":"SUM(F28:F28)","v":0},0,0,0,0,0,0,0,0,0,0,0,0,0,0,0,0,0,0,0,0,0,0,0,0,0,0,0,0,0,0,0,0,0,0,0,0,0,0,0,0,0,0,0,0,0,0,0]

{"sheet":"Add_Plan_Style","index":1,"n_rows":19,"n_cols":5,"rows_kept":19,"cut":false,"hidden":true,"merged":[[16,0,16,4],[18,1,18,3],[7,0,7,4],[9,1,9,3],[10,0,10,4],[12,1,12,3],[13,0,13,4],[15,1,15,3]]}
[]
[]
[]
[]
[]
[]
[]
["高圧受電点"]
["小売電気事業者1",null,null,null,"高圧受電点基準値(kWh)"]
["合計基準値","合計基準値＝Σ基準値内訳",null,null,"合計基準値（kWh）"]
["低圧受電点"]
["小売電気事業者1",null,null,null,"低圧受電点基準値(kWh)"]
["合計基準値","合計基準値＝Σ基準値内訳",null,null,"合計基準値（kWh）"]
["高圧機器点"]
["小売電気事業者1",null,null,null,"高圧機器点基準値(kWh)"]
["合計基準値","合計基準値＝Σ基準値内訳",null,null,"合計基準値（kWh）"]
["低圧機器点"]
["小売電気事業者1",null,null,null,"低圧機器点基準値(kWh)"]
["合計基準値","合計基準値＝Σ基準値内訳",null,null,"合計基準値（kWh）"]

{"sheet":"使い方","index":2,"n_rows":111,"n_cols":9,"rows_kept":111,"cut":false,"hidden":false,"merged":[[76,22,81,23],[76,25,76,26],[76,27,76,29],[76,30,76,31],[77,25,77,26],[77,27,77,29],[77,30,77,31],[78,25,78,26],[78,27,78,29],[78,30,78,31],[81,25,81,26],[81,27,81,29],[81,30,81,31],[80,25,80,26],[80,27,80,29],[80,30,80,31],[74,30,74,31],[75,25,75,26],[75,27,75,29],[75,30,75,31],[79,25,79,26],[79,27,79,29],[79,30,79,31],[74,27,74,29],[74,25,74,26],[69,22,69,23],[69,25,69,26],[69,27,69,29],[69,30,69,31],[72,25,72,26],[72,27,72,29],[72,30,72,31],[73,25,73,26],[73,27,73,29],[73,30,73,31],[70,25,70,26],[70,27,70,29],[53,0,53,5],[53,6,53,14],[70,30,70,31],[71,25,71,26],[71,27,71,29],[71,30,71,31],[65,27,68,29],[65,30,65,31],[66,30,66,31],[67,30,67,31],[68,30,68,31],[63,22,68,26],[63,27,64,29],[63,30,63,31],[64,30,64,31],[70,22,75,23],[50,0,50,5],[50,6,50,14],[51,0,51,5],[51,6,51,14],[52,0,52,5],[52,6,52,14],[42,0,42,13],[47,0,47,7],[48,0,48,14],[49,0,49,5],[49,6,49,14],[38,0,38,5],[38,6,38,7],[38,8,38,13],[39,0,39,5],[39,6,39,7],[39,8,39,13],[36,0,36,5],[36,6,36,7],[36,8,36,13],[37,0,37,5],[37,6,37,7],[37,8,37,13],[35,0,35,5],[35,6,35,7],[35,8,35,13],[0,0,1,11],[23,0,25,13],[28,0,28,7],[29,0,29,3],[29,4,29,5],[29,6,29,13],[32,0,32,7],[33,0,33,13],[34,0,34,5],[34,6,34,7],[34,8,34,13],[4,5,21,13]]}
["直前計測型基準値内訳実績入力支援ツールの使用方法"]
[]
[]
["①起動ボタンの説明"]
[null,null,null,null,null,"本ツールは用途に合わせ，左図のボタンを押下して使用します。\n各ボタンの機能は，下記の通りです。\n・『小売電気事業者数変更』ボタン\n　作成する基準値計画の内訳となる小売電気事業者数を変更します。\n・『基準値XML読込』ボタン\n　過去に作成した基準値計画のXMLファイルを読み込みます。\n　※事前に事業者の増減(入力枠の準備)を行うことで処理時間が短縮します。\n・『基準値XML出力』ボタン\n　入力シートで作成した基準値計画をXMLファイル形式で出力します。\n・『XMLファイル妥当性検証』ボタン\n　本ツール以外で作成した基準値計画のXMLをスキーマと照合してビジネスプロトコル標準規格に準拠しているか妥当性を検証します。なお，本ツールでXMLファイルの読み込みおよび出力を行った場合，スキーマによる妥当性を検証しているため，この操作は不要です。\n・入力欄移動\n　指定入力欄の先頭へ移動します。\n・『終了（上書保存）』ボタン\n　入力シートを上書き保存した後，本エクセルブックを閉じます。\n"]
[]
[]
[]
[]
[]
[]
[]
[]
[]
[]
[]
[]
[]
[]
[]
[]
[]
["②入力項目の説明"]
["本ツールは，『入力シート』の白色セルの所定の項目を入力した上で，XMLファイルに変換します。白色セルで『▲』マークが記されていない箇所は，必須入力項目です。具体的な入力方法は次項以降で説明します。"]
[]
[]
[]
["②－１　ファイル情報の入力"]
["ファイル情報の具体的な入力規則は下記の通りです。"]
["対象年月日",null,null,null,"20210405",null,"対象年月日は『YYYYMMDD』形式で半角数字8桁で入力。"]
[]
["②－２　基本情報の入力"]
["基本情報の具体的な入力規則は下記の通りです。"]
["基本情報"]
[null,null,null,null,null,null,"コード",null,"名称▲"]
["情報区分",null,null,null,null,null,"0331",null,"直前計測型基準値内訳実績"]
["提出先事業者",null,null,null,null,null,"10033",null,"東京電力パワーグリッド株式会社"]
["送信事業者",null,null,null,null,null,"80363",null,"グローバルエナジーアグリゲーター"]
["提出者（アグリゲーター用系統コード）",null,null,null,null,null,"3Y543",null,"グローバルエナジーアグリゲーター"]
["運用モード",null,null,null,null,null,"通常"]
[]
["情報区分は，自動入力（W9_0331で直前計測型基準値内訳実績を意味します）。"]
["提出先事業者は，作成する基準値計画が対象するリソースにおける属地エリアの一般送配電事業者を入力。"]
["送信事業者は，送信事業者コードと事業者名称を入力。"]
["運用モードは，約定したリソースの基準値計画として需給調整市場システムに提出する場合，『通常』を選択。"]
[]
["②－３　出力ファイル情報の入力"]
["出力ファイル情報の具体的な入力は下記の通りです。"]
["出力ファイル名情報"]
["XMLファイル名",null,null,null,null,null,"W9_0331_20210405_07_3Y5ZZ_KSS2019.xml"]
["対象時期の開始日",null,null,null,null,null,20210405]
["約定対象開始コマ番号",null,null,null,null,null,"07"]
["アグリゲータ用系統コード",null,null,null,null,null,"3Y5ZZ"]
["電源等コード",null,null,null,null,null,"KSS2019"]
[]
["XMLファイル名は，自動入力（W9_”＋情報区分＋対象年月日＋約定対象開始コマ番号＋提出者（アグリゲータ用系統コード）＋電源等コード＋”.xml”を表示）"]
["対象時期の開始日は，自動入力（適用開始希望年月日を表示）"]
["約定対象開始コマ番号は，自動入力（提出者（約定対象時間の開始時刻よりコマ番号を数値2桁で表示）"]
["アグリゲータ用系統コードは，自動入力（提出者（アグリゲータ用系統コード）を表示）"]
["電源等コードは，半角英数字（\"-\",\"_\"も使用可）で10桁以内で入力"]
[]
["②－４　事業者コードの入力"]
["事業者コードの具体的な入力規則は下記の通りです。"]
[]
[]
[]
[]
[]
[]
[]
[]
[]
[]
[]
[]
[]
[]
[]
[]
[]
[]
["小売電気事業者コードは，需要リソースに電気を供給する小売電気事業者の事業者コードを半角英数字5桁で入力。"]
["BGコードは，需要リソースに電気を供給する小売電気事業者の名称を50文字以内で任意入力。"]
["機器点特定番号（高圧）は、半角英数字22桁で入力。"]
[]
["②－５　基準値の入力"]
["基準値の具体的な入力規則は下記の通りです。"]
[]
[]
[]
[]
[]
[]
[]
[]
[]
[]
[]
[]
[]
[]
[]
[]
[]
[]
[]
[]
[]
[]
["リスト・パターンは、半角数字3桁、001～500を入力。"]
["基準値(kWh）は，需要リソースが需要抑制を実施しなかった場合の接続対象電力量(kWh)を小売電気事業者かつ30分コマ単位に半角整数で入力。"]

{"sheet":"エラーメッセージ一覧","index":3,"n_rows":53,"n_cols":6,"rows_kept":53,"cut":false,"hidden":false,"merged":[]}
["■直前計測型基準値内訳実績入力支援ツール　エラーメッセージ一覧"]
[]
[null,"No.","操作","エラー種別","エラーメッセージ","対処方法"]
[null,{"$f":"ROW()-3","v":1},"「小売電気事業者数変更」ボタン押下","入力エラー","増加させる高圧受電点の小売電気事業者数を1以上かつxxx以下の整数で入力して下さい。","【高圧受電点の増加】\n・増加する小売電気事業者数を見直してください。（max100,000）"]
[null,2,null,"入力エラー","高圧受電点の小売り事業者数が100,000個を超えます。超えない数を入力して下さい。","【高圧受電点の増加】\n・増加する小売電気事業者数を見直してください。（max100,000）"]
[null,3,null,"入力エラー","現在，高圧受電点の小売電気事業者は100,000個存在するため，これ以上増加できません。","【高圧受電点の増加】\n・増加する小売電気事業者数を見直してください。（max100,000）"]
[null,4,null,"入力エラー","増加させる低圧受電点の小売電気事業者数を1以上かつxxx以下の整数で入力して下さい。","【低圧受電点の増加】\n・増加する小売電気事業者数を見直してください。（max100,000）"]
[null,5,null,"入力エラー","低圧受電点の小売り事業者数が100,000個を超えます。超えない数を入力して下さい。","【低圧受電点の増加】\n・増加する小売電気事業者数を見直してください。（max100,000）"]
[null,6,null,"入力エラー","現在，低圧受電点の小売電気事業者は100,000個存在するため，これ以上増加できません。","【低圧受電点の増加】\n・増加する小売電気事業者数を見直してください。（max100,000）"]
[null,7,null,"入力エラー","増加させる高圧機器点の小売電気事業者数を1以上かつxxx以下の整数で入力して下さい。","【高圧機器点の増加】\n・増加する小売電気事業者数を見直してください。（max100,000）"]
[null,8,null,"入力エラー","高圧機器点の小売り事業者数が100,000個を超えます。超えない数を入力して下さい。","【高圧機器点の増加】\n・増加する小売電気事業者数を見直してください。（max100,000）"]
[null,9,null,"入力エラー","現在，高圧機器点の小売電気事業者は100,000個存在するため，これ以上増加できません。","【高圧機器点の増加】\n・増加する小売電気事業者数を見直してください。（max100,000）"]
[null,10,null,"入力エラー","増加させる低圧機器点の小売電気事業者数を1以上かつxxx以下の整数で入力して下さい。","【低圧機器点の増加】\n・増加する小売電気事業者数を見直してください。（max100,000）"]
[null,11,null,"入力エラー","低圧機器点の小売り事業者数が100,000個を超えます。超えない数を入力して下さい。","【低圧機器点の増加】\n・増加する小売電気事業者数を見直してください。（max100,000）"]
[null,12,null,"入力エラー","現在，低圧機器点の小売電気事業者は100,000個存在するため，これ以上増加できません。","【低圧機器点の増加】\n・増加する小売電気事業者数を見直してください。（max100,000）"]
[null,13,null,"入力エラー","削除する小売電気事業者番号を1以上の整数で入力して下さい。","【小売電気事業者数減少】小売電気事業者を1個選択して削除\n・削除する小売電気事業者番号を入力してください。"]
[null,14,null,"入力エラー","削除すると小売電気事業者が存在しなくなるため，これ以上削除できません。","【小売電気事業者数減少】小売電気事業者を1個選択して削除／連続した複数の小売電気事業者を削除\n・小売電気事業者数は1個は残す必要があります。小売電気事業者数情報を確認してください。"]
[null,15,null,"入力エラー","削除する番号の範囲を確認してください。","【小売電気事業者数減少】小売電気事業者を1個選択して削除／連続した複数の小売電気事業者を削除\n・削除する小売電気事業者番号を見直してください。"]
[null,16,null,"入力エラー","削除する小売電気事業者番号を1～xxxの整数で入力して下さい。","【小売電気事業者数減少】小売電気事業者を1個選択して削除／連続した複数の小売電気事業者を削除\n・削除する小売電気事業者番号を見直してください。"]
[null,17,null,"入力エラー","削除する小売電気事業者番号の開始と終了番号を入力して下さい。","【小売電気事業者数減少】連続した複数の小売電気事業者を削除\n・削除する需要家番号を入力してください。"]
[null,18,null,"入力エラー","削除終了の小売電気事業者番号は，削除開始の小売電気事業者番号より同じか後にして下さい。","【小売電気事業者数減少】連続した複数の小売電気事業者を削除\n・削除する小売電気事業者番号の開始番号と終了番号を見直してください。"]
[null,19,"「基準値XML読込」ボタン押下","XMLエラー","読み込んだXMLファイルは下記の理由で規格に違反しているため、読込を中止します。\nエラー理由：　\n　　　　～","・エラー理由を参照しXMLファイルの指摘箇所を修正してください。"]
[null,20,"画面項目入力（入力規制）","入力エラー","対象年月日は『YYYYMMDD』形式の半角数字8桁で入力して下さい。","【ファイル情報】対象年月日\n・入力値を見直してください。"]
[null,21,null,"入力エラー","提出先事業者コードは半角英数字5桁で入力して下さい。","【基本情報】_提出先事業者（コード）\n・入力値を見直してください。"]
[null,22,null,"入力エラー","提出先事業者名称は50文字以内で入力して下さい。","【基本情報】_提出先事業者（名称▲）\n・入力値を見直してください。"]
[null,23,null,"入力エラー","送信事業者コードは半角英数字5桁で入力して下さい。","【基本情報】_送信事業者（コード）\n・入力値を見直してください。"]
[null,24,null,"入力エラー","送信事業者名称は50文字以内で入力して下さい。","【基本情報】_送信事業者（名称▲）\n・入力値を見直してください。"]
[null,25,null,"入力エラー","提出者コードは，アグリゲータ用系統コード（半角英数字5桁）を入力して下さい。","【基本情報】_提出者（アグリゲータ用系統コード）（コード）\n・入力値を見直してください。"]
[null,26,null,"入力エラー","提出者名称は50文字以内で入力して下さい。","【基本情報】_提出者（アグリゲータ用系統コード）（名称▲）\n・入力値を見直してください。"]
[null,27,null,"入力エラー","小売電気事業者コードは半角英数字5桁で入力して下さい。","【基準値内訳】小売電気事業者コード\n・入力値を見直してください。"]
[null,28,null,"入力エラー","小売電気事業者名称は50文字以内で入力して下さい。","【基準値内訳】小売電気事業者名称\n・入力値を見直してください。"]
[null,29,null,"入力エラー","基準値(kWh)は半角9桁以内かつ正の整数で入力して下さい。","【基準値内訳】基準値(kWh)\n・入力値を見直してください。"]
[null,30,"「基準値XML出力」ボタン押下","入力エラー","対象年月日は『YYYYMMDD』形式の半角数字8桁で入力してください。","【ファイル情報】対象年月日\n・入力値を見直してください。"]
[null,31,null,"入力エラー","対象年月日は存在する日付で入力してください。","【ファイル情報】対象年月日\n・入力値を見直してください。"]
[null,32,null,"入力エラー","提出する時間帯の対象各リスト・パターンを入力してください。","【ファイル情報】対象各リスト・パターン\n・最低一つは対象各リスト・パターンの入力が必要です。"]
[null,33,null,"入力エラー","提出先事業者コードは半角英数字5桁で入力してください。","【基本情報】_提出先事業者（コード）\n・入力値を見直してください。"]
[null,34,null,"入力エラー","提出先事業者名称は50文字以内で入力してください。","【基本情報】_提出先事業者（名称▲）\n・入力値を見直してください。"]
[null,35,null,"入力エラー","送信事業者コードは半角英数字5桁で入力してください。","【基本情報】_送信事業者（コード）\n・入力値を見直してください。"]
[null,36,null,"入力エラー","送信事業者名称は50文字以内で入力してください。","【基本情報】_送信事業者（名称▲）\n・入力値を見直してください。"]
[null,37,null,"入力エラー","提出者コード（アグリゲータ用系統コード）は半角英数字5桁（2桁目『Y』)で入力してください。","【基本情報】_提出者（アグリゲータ用系統コード）（コード）\n・入力値を見直してください。"]
[null,38,null,"入力エラー","提出者名称は50文字以内で入力してください。","【基本情報】_提出者（アグリゲータ用系統コード）（名称▲）\n・入力値を見直してください。"]
[null,39,null,"入力エラー","電源等コードは半角英数字10桁以内で入力してください。","【出力ファイル名情報】_電源等コード\n・入力値を見直してください。"]
[null,40,null,"入力エラー","出力しようとしたXMLドキュメントは下記の理由で規格に違反してします。","・エラー理由を参照しXMLファイルの指摘箇所を修正してください。"]
[null,41,null,"入力エラー","小売電気事業者nの小売電気事業者コードに誤りがあります。\n小売電気事業者コードは半角英数字5桁で入力してください。","【基準値内訳】小売電気事業者コード\n・入力値を見直してください。"]
[null,42,null,"入力エラー","小売電気事業者nに誤りがあります。\n小売電気事業者名称は50文字以内で入力してください。","【基準値内訳】小売電気事業者名称\n・入力値を見直してください。"]
[null,43,null,"入力エラー","小売電気事業者n、時刻コードmの基準値内訳の基準値に誤りがあります。\n基準値(kWh)は半角数字9桁以内の正の整数で入力してください。","【基準値内訳】基準値(kWh)\n・入力値を見直してください。"]
[null,44,null,"入力エラー","小売電気事業者nのBGコードに誤りがあります。\n小売電気事業者コードは半角英数字5桁で入力してください。","【基準値内訳】BGコード\n・入力値を見直してください。"]
[null,45,null,"入力エラー","小売電気事業者nの機器点特定番号(高圧)に誤りがあります。\n小売電気事業者コードは半角英数字5桁で入力してください。","【基準値内訳】機器点特定番号(高圧)\n・入力値を見直してください。"]
[null,46,"「XMLファイル妥当性検証」ボタン押下","XMLエラー","読み込んだXMLファイルは下記の理由で，『基準値計画等受領業務ビジネスプロトコル標準規格』に違反しています。\nエラー理由：　\n　　　　～","・エラー理由を参照しXMLファイルの指摘箇所を修正してください。"]
[null,47,"「入力欄移動」ボタン押下","選択エラー","高圧受電点は表示されておりません。","【入力欄移動】高圧受電点\n・指定を見直してください。"]
[null,48,null,"選択エラー","低圧受電点は表示されておりません。","【入力欄移動】低圧受電点\n・指定を見直してください。"]
[null,49,null,"選択エラー","高圧機器点は表示されておりません。","【入力欄移動】高圧機器点\n・指定を見直してください。"]
[null,50,null,"選択エラー","低圧機器点は表示されておりません。","【入力欄移動】低圧機器点\n・指定を見直してください。"]

{"sheet":"OCTO-W9-0331-001.xsd","index":4,"n_rows":335,"n_cols":4,"rows_kept":335,"cut":false,"hidden":true,"merged":[]}
["<?xml version=\"1.0\" encoding=\"UTF-8\" ?>"]
["<xsd:schema xmlns:xsd=\"http://www.w3.org/2001/XMLSchema\" elementFormDefault=\"qualified\" attributeFormDefault=\"unqualified\">"]
[]
["<!-- 直前計測型基準値内訳実績(0331) -->"]
["<!-- 基準値 2025.02 rev 3.0 Release -->"]
[]
["<!-- メッセージグループヘッダ -->"]
[null,"<xsd:element name=\"MMS-MSG\" type=\"TypeMMS-MSG\" />"]
[null,"<xsd:complexType name=\"TypeMMS-MSG\">"]
[null,null,"<xsd:sequence>"]
[null,null,null,"<xsd:element name=\"JPMGRP\" type=\"TypeJPMGRP\" />"]
[null,null,"</xsd:sequence>"]
[null,null,"<!-- BPID機関コード -->"]
[null,null,"<xsd:attribute name=\"BPID\"    type=\"CdC10-OCTO\"   use=\"required\" />"]
[null,null,"<!-- BPID副機関コード -->"]
[null,null,"<xsd:attribute name=\"BPIDSUB\" type=\"CdC11-W9\"     use=\"required\" />"]
[null,null,"<!-- 各BP標準の版 -->"]
[null,null,"<xsd:attribute name=\"BPIDVER\" type=\"CdC12-3A\"     use=\"required\" />"]
[null,null,"<!-- 情報区分コード -->"]
[null,null,"<xsd:attribute name=\"MSGID\"   type=\"CdC14\"        use=\"required\" />"]
[null,null,"<!-- マッピング規則の版 -->"]
[null,null,"<xsd:attribute name=\"MAPVER\"  type=\"CdC21\"        use=\"required\" />"]
[null,"</xsd:complexType>"]
[]
[null,"<!-- メッセージ定義 -->"]
[null,"<xsd:complexType name=\"TypeJPMGRP\">"]
[null,null,"<xsd:sequence>"]
[null,null,null,"<!-- メッセージグループヘッダ -->"]
[null,null,null,"<xsd:element name=\"JPMGH\" type=\"TypeJPMGH\" />"]
[null,null,null,"<!-- 業務メッセージ -->"]
[null,null,null,"<xsd:element name=\"JPTRM\" type=\"TypeJPTRM\" />"]
[null,null,"</xsd:sequence>"]
[null,null,"<!-- メッセージグループの属性定義 -->"]
[null,null,"<!-- メッセージグループのシーケンス番号 -->"]
[null,null,"<xsd:attribute name=\"SEQ\" type=\"NI5\" use=\"required\" />"]
[null,"</xsd:complexType>"]
[]
["<!-- メッセージグループヘッダ -->"]
[null,"<xsd:complexType name=\"TypeJPMGH\">"]
[null,null,"<xsd:sequence>"]
[null,null,null,"<!-- 運用モード -->"]
[null,null,null,"<xsd:element name=\"JPC03\" type=\"CdC03\" />"]
[null,null,null,"<!-- 発信者コード -->"]
[null,null,null,"<xsd:element name=\"JPC06\" type=\"CdC06\" />"]
[null,null,null,"<!-- 受信者コード -->"]
[null,null,null,"<xsd:element name=\"JPC09\" type=\"CdC09\" />"]
[null,null,null,"<!-- BPID機関コード -->"]
[null,null,null,"<xsd:element name=\"JPC10\" type=\"CdC10-OCTO\" />"]
[null,null,null,"<!-- BPID副機関コード -->"]
[null,null,null,"<xsd:element name=\"JPC11\" type=\"CdC11-W9\" />"]
[null,null,null,"<!-- BPIDVER -->"]
[null,null,null,"<xsd:element name=\"JPC12\" type=\"CdC12-3A\" />"]
[null,null,null,"<!-- 情報区分コード -->"]
[null,null,null,"<xsd:element name=\"JPC14\" type=\"CdC14\" />"]
[null,null,null,"<!-- 作成日付時刻 -->"]
[null,null,null,"<xsd:element name=\"JPC19\" type=\"DT_YYMMDDHHMMSS\" />"]
[null,null,null,"<!-- 構文規則識別版数 -->"]
[null,null,null,"<xsd:element name=\"JPC21\" type=\"CdC21\" />"]
[null,null,"</xsd:sequence>"]
[null,"</xsd:complexType>"]
[]
["<!-- 業務メッセージ -->"]
[null,"<xsd:complexType name=\"TypeJPTRM\">"]
[null,null,"<xsd:sequence>"]
[null,null,null,"<!-- 情報区分コード -->"]
[null,null,null,"<xsd:element name=\"JP00002\" type=\"STR4S\" />"]
[null,null,null,"<!-- 情報区分名称 -->"]
[null,null,null,"<xsd:element name=\"JP06170\" type=\"STR50\" minOccurs=\"0\" maxOccurs=\"1\" />"]
[null,null,null,"<!-- 送信者コード -->"]
[null,null,null,"<xsd:element name=\"JP06110\" type=\"STR5S\" />"]
[null,null,null,"<!-- 送信者名称 -->"]
[null,null,null,"<xsd:element name=\"JP06111\" type=\"STR50\" minOccurs=\"0\" maxOccurs=\"1\" />"]
[null,null,null,"<!-- 提出先事業者コード -->"]
[null,null,null,"<xsd:element name=\"JP06358\" type=\"STR5S\" />"]
[null,null,null,"<!-- 提出先事業者 -->"]
[null,null,null,"<xsd:element name=\"JP06359\" type=\"STR50\" minOccurs=\"0\" maxOccurs=\"1\" />"]
[null,null,null,"<!-- アグリゲーションコーディネータ用系統コード -->"]
[null,null,null,"<xsd:element name=\"JP06700\" type=\"CD06700\" />"]
[null,null,null,"<!-- アグリゲーションコーディネータ名称 -->"]
[null,null,null,"<xsd:element name=\"JP06701\" type=\"STR50\" minOccurs=\"0\" maxOccurs=\"1\" />"]
[null,null,null,"<!-- 対象期間開始年月日 -->"]
[null,null,null,"<xsd:element name=\"JP06171\" type=\"DT_YYYYMMDD\" />"]
[null,null,null,"<!-- 帳票作成支援ツール -->"]
[null,null,null,"<xsd:element name=\"JP06613\" type=\"STR50\" minOccurs=\"0\" maxOccurs=\"1\" />"]
[]
[null,null,null,"<!-- M10ループ -->"]
[null,null,null,"<xsd:element name=\"JPM00010\" type=\"TypeJPM00010\" />"]
[null,null,"</xsd:sequence>"]
[null,"<!-- メッセージの属性（シーケンス番号） -->"]
[null,null,"<xsd:attribute name=\"SEQ\" type=\"NI5\" use=\"required\" />"]
[null,"</xsd:complexType>"]
[]
[null,"<!-- M10ループ -->"]
[null,"<xsd:complexType name=\"TypeJPM00010\">"]
[null,null,"<xsd:sequence>"]
[null,null,null,"<xsd:element name=\"JPMR00010\" type=\"TypeJPMR00010\" minOccurs=\"1\" maxOccurs=\"48\"/>"]
[null,null,"</xsd:sequence>"]
[null,"</xsd:complexType>"]
[]
[null,"<!-- M10ループ中身 -->"]
[null,"<xsd:complexType name=\"TypeJPMR00010\">"]
[null,null,"<xsd:sequence>"]
[null,null,null,"<!-- 時刻コード -->"]
[null,null,null,"<xsd:element name=\"JP06219\" type=\"CD06252\" />"]
[null,null,null,"<!-- パターン番号 -->"]
[null,null,null,"<xsd:element name=\"JP06703\" type=\"CD06703\" />"]
[null,null,null,"<!-- M11ループ -->"]
[null,null,null,"<xsd:element name=\"JPM00011\" type=\"TypeJPM00011\" minOccurs=\"0\" maxOccurs=\"1\"  />"]
[null,null,null,"<!-- M12ループ -->"]
[null,null,null,"<xsd:element name=\"JPM00012\" type=\"TypeJPM00012\" minOccurs=\"0\" maxOccurs=\"1\"  />"]
[null,null,null,"<!-- M13ループ -->"]
[null,null,null,"<xsd:element name=\"JPM00013\" type=\"TypeJPM00013\" minOccurs=\"0\" maxOccurs=\"1\"  />"]
[null,null,null,"<!-- M14ループ -->"]
[null,null,null,"<xsd:element name=\"JPM00014\" type=\"TypeJPM00014\" minOccurs=\"0\" maxOccurs=\"1\"  />"]
[null,null,"</xsd:sequence>"]
[null,"</xsd:complexType>"]
[]
[null,"<!-- M11ループ -->"]
[null,"<xsd:complexType name=\"TypeJPM00011\">"]
[null,null,"<xsd:sequence>"]
[null,null,null,"<xsd:element name=\"JPMR00011\" type=\"TypeJPMR00011\" minOccurs=\"0\" maxOccurs=\"100000\" />"]
[null,null,"</xsd:sequence>"]
[null,"</xsd:complexType>"]
[]
[null,"<!-- M11ループ中身 -->"]
[null,"<xsd:complexType name=\"TypeJPMR00011\">"]
[null,null,"<xsd:sequence>"]
[null,null,null,"<!-- 事業者コード -->"]
[null,null,null,"<xsd:element name=\"JP06316\" type=\"STR5S\" />"]
[null,null,null,"<!-- 高圧受電点基準値 -->"]
[null,null,null,"<xsd:element name=\"JP06746\" type=\"NI9\" />"]
[null,null,"</xsd:sequence>"]
[null,"</xsd:complexType>"]
[]
[null,"<!-- M12ループ -->"]
[null,"<xsd:complexType name=\"TypeJPM00012\">"]
[null,null,"<xsd:sequence>"]
[null,null,null,"<xsd:element name=\"JPMR00012\" type=\"TypeJPMR00012\" minOccurs=\"0\" maxOccurs=\"100000\" />"]
[null,null,"</xsd:sequence>"]
[null,"</xsd:complexType>"]
[]
[null,"<!-- M12ループ中身 -->"]
[null,"<xsd:complexType name=\"TypeJPMR00012\">"]
[null,null,"<xsd:sequence>"]
[null,null,null,"<!-- 事業者コード -->"]
[null,null,null,"<xsd:element name=\"JP06316\" type=\"STR5S\" />"]
[null,null,null,"<!-- BGコード -->"]
[null,null,null,"<xsd:element name=\"JP06300\" type=\"STR5S\" minOccurs=\"0\" maxOccurs=\"1\" />"]
[null,null,null,"<!-- 低圧受電点基準値 -->"]
[null,null,null,"<xsd:element name=\"JP06747\" type=\"NI9\" />"]
[null,null,"</xsd:sequence>"]
[null,"</xsd:complexType>"]
[]
[null,"<!-- M13ループ -->"]
[null,"<xsd:complexType name=\"TypeJPM00013\">"]
[null,null,"<xsd:sequence>"]
[null,null,null,"<xsd:element name=\"JPMR00013\" type=\"TypeJPMR00013\" minOccurs=\"0\" maxOccurs=\"100000\" />"]
[null,null,"</xsd:sequence>"]
[null,"</xsd:complexType>"]
[]
[null,"<!-- M13ループ中身 -->"]
[null,"<xsd:complexType name=\"TypeJPMR00013\">"]
[null,null,"<xsd:sequence>"]
[null,null,null,"<!-- 機器点特定番号（高圧） -->"]
[null,null,null,"<xsd:element name=\"JP06748\" type=\"STR22S\" />"]
[null,null,null,"<!-- 高圧機器点基準値 -->"]
[null,null,null,"<xsd:element name=\"JP06749\" type=\"NI9\" />"]
[null,null,"</xsd:sequence>"]
[null,"</xsd:complexType>"]
[]
[null,"<!-- M14ループ -->"]
[null,"<xsd:complexType name=\"TypeJPM00014\">"]
[null,null,"<xsd:sequence>"]
[null,null,null,"<xsd:element name=\"JPMR00014\" type=\"TypeJPMR00014\" minOccurs=\"0\" maxOccurs=\"100000\" />"]
[null,null,"</xsd:sequence>"]
[null,"</xsd:complexType>"]
[]
[null,"<!-- M14ループ中身 -->"]
[null,"<xsd:complexType name=\"TypeJPMR00014\">"]
[null,null,"<xsd:sequence>"]
[null,null,null,"<!-- 事業者コード -->"]
[null,null,null,"<xsd:element name=\"JP06316\" type=\"STR5S\" />"]
[null,null,null,"<!-- BGコード -->"]
[null,null,null,"<xsd:element name=\"JP06300\" type=\"STR5S\" minOccurs=\"0\" maxOccurs=\"1\" />"]
[null,null,null,"<!-- 低圧機器点基準値 -->"]
[null,null,null,"<xsd:element name=\"JP06750\" type=\"NI9\" />"]
[null,null,"</xsd:sequence>"]
[null,"</xsd:complexType>"]
[]
["<!-- JPC10:BPID機関コード(OCTO) -->"]
["<xsd:simpleType name=\"CdC10-OCTO\">"]
[null,"<xsd:restriction base=\"xsd:string\">"]
[null,null,null,"<xsd:enumeration value=\"OCTO\" />"]
[null,"</xsd:restriction>"]
["</xsd:simpleType>"]
[]
["<!-- JPC11:BPID副機関コード(W9) -->"]
["<xsd:simpleType name=\"CdC11-W9\">"]
[null,"<xsd:restriction base=\"xsd:string\">"]
[null,null,"<xsd:enumeration value=\"W9\" />"]
[null,"</xsd:restriction>"]
["</xsd:simpleType>"]
[]
["<!-- JPC12:BPID版(3A) -->"]
["<xsd:simpleType name=\"CdC12-3A\">"]
[null,"<xsd:restriction base=\"xsd:string\">"]
[null,null,"<xsd:enumeration value=\"3A\" />"]
[null,"</xsd:restriction>"]
["</xsd:simpleType>"]
[]
["<!-- 情報区分コード -->"]
["<xsd:simpleType name=\"CdC14\">"]
[null,"<xsd:restriction base=\"xsd:string\">"]
[null,null,"<xsd:enumeration value=\"0331\" />"]
[null,"</xsd:restriction>"]
["</xsd:simpleType>"]
[]
["<!-- JPC21:構文規則識別版数 -->"]
["<xsd:simpleType name=\"CdC21\">"]
[null,"<xsd:restriction base=\"xsd:string\">"]
[null,null,"<xsd:enumeration value=\"1.0-1A\" />"]
[null,"</xsd:restriction>"]
["</xsd:simpleType>"]
[]
["<!-- JPC03:運用モード -->"]
["<xsd:simpleType name=\"CdC03\">"]
[null,"<xsd:restriction base=\"xsd:string\">"]
[null,null,"<xsd:enumeration value=\"\" />"]
[null,null,"<xsd:enumeration value=\"0\" />"]
[null,null,"<xsd:enumeration value=\"1\" />"]
[null,"</xsd:restriction>"]
["</xsd:simpleType>"]
[]
["<!-- JPC06:発信者コード -->"]
["<xsd:simpleType name=\"CdC06\">"]
[null,"<xsd:restriction base=\"xsd:string\">"]
[null,null,"<xsd:pattern value=\"\\w{5}[0]{7}\" />"]
[null,"</xsd:restriction>"]
["</xsd:simpleType>"]
[]
["<!-- アグリゲーションコーディネータ用系統コード -->"]
["<xsd:simpleType name=\"CD06700\">"]
[null,"<xsd:restriction base=\"xsd:string\">"]
[null,null,"<xsd:pattern value=\"[0-9]Y[&#x20;-&#x7e;]{3}\" />"]
[null,"</xsd:restriction>"]
["</xsd:simpleType>"]
[]
[]
["<!-- JPC09:受信者コード -->"]
["<xsd:simpleType name=\"CdC09\">"]
[null,"<xsd:restriction base=\"xsd:string\">"]
[null,null,"<xsd:pattern value=\"\\w{5}[0]{7}\" />"]
[null,"</xsd:restriction>"]
["</xsd:simpleType>"]
[]
["<!-- 日付関連 -->"]
["<xsd:simpleType name=\"DT_YYMMDDHHMMSS\">"]
[null,"<xsd:restriction base=\"xsd:string\">"]
[null,null,"<xsd:pattern value=\"\\d{12}\" />"]
[null,"</xsd:restriction>"]
["</xsd:simpleType>"]
[]
["<!-- パターン番号 -->"]
["<xsd:simpleType name=\"CD06703\">"]
[null,"<xsd:restriction base=\"xsd:string\">"]
[null,null,"<xsd:pattern value=\"00[1-9]|0[1-9][0-9]|[1-4][0-9][0-9]|500\" />"]
[null,"</xsd:restriction>"]
["</xsd:simpleType>"]
[]
["<!-- JP06252:時刻コード -->"]
["<xsd:simpleType name=\"CD06252\">"]
[null,"<xsd:restriction base=\"xsd:string\">"]
[null,null,"<xsd:pattern value=\"0[1-9]|[1-3][0-9]|4[0-8]\" />"]
[null,"</xsd:restriction>"]
["</xsd:simpleType>"]
[]
["<!-- 日付関連 -->"]
["<xsd:simpleType name=\"DT_YYYYMMDD\">"]
[null,"<xsd:restriction base=\"xsd:string\">"]
[null,null,"<xsd:pattern value=\"\\d{8}\" />"]
[null,"</xsd:restriction>"]
["</xsd:simpleType>"]
[]
["<!-- 数値型 -->"]
["<!-- ５桁 -->"]
["<xsd:simpleType name=\"NI5\">"]
[null,"<xsd:restriction base=\"xsd:nonNegativeInteger\">"]
[null,null,"<xsd:totalDigits value=\"5\" />"]
[null,"</xsd:restriction>"]
["</xsd:simpleType>"]
[]
["<!-- ９桁 -->"]
["<xsd:simpleType name=\"NI9\">"]
[null,"<xsd:restriction base=\"xsd:nonNegativeInteger\">"]
[null,null,"<xsd:totalDigits value=\"9\" />"]
[null,"</xsd:restriction>"]
["</xsd:simpleType>"]
[]
["<!-- 文字型 -->"]
["<!-- 50文字 -->"]
["<xsd:simpleType name=\"STR50\">"]
[null,"<xsd:restriction base=\"xsd:string\">"]
[null,null,"<xsd:minLength value=\"1\" />"]
[null,null,"<xsd:maxLength value=\"50\" />"]
[null,"</xsd:restriction>"]
["</xsd:simpleType>"]
[]
["<!-- ４文字・半角 -->"]
["<xsd:simpleType name=\"STR4S\">"]
[null,"<xsd:restriction base=\"xsd:string\">"]
[null,null,"<xsd:pattern value=\"[&#x20;-&#x7e;]+\" />"]
[null,null,"<xsd:minLength value=\"4\" />"]
[null,null,"<xsd:maxLength value=\"4\" />"]
[null,"</xsd:restriction>"]
["</xsd:simpleType>"]
[]
["<!-- ５文字・半角 -->"]
["<xsd:simpleType name=\"STR5S\">"]
[null,"<xsd:restriction base=\"xsd:string\">"]
[null,null,"<xsd:pattern value=\"[&#x20;-&#x7e;]+\" />"]
[null,null,"<xsd:minLength value=\"5\" />"]
[null,null,"<xsd:maxLength value=\"5\" />"]
[null,"</xsd:restriction>"]
["</xsd:simpleType>"]
[]
["<!-- ２２文字・半角 -->"]
["<xsd:simpleType name=\"STR22S\">"]
[null,"<xsd:restriction base=\"xsd:string\">"]
[null,null,"<xsd:pattern value=\"[&#x20;-&#x7e;]+\" />"]
[null,null,"<xsd:minLength value=\"22\" />"]
[null,null,"<xsd:maxLength value=\"22\" />"]
[null,"</xsd:restriction>"]
["</xsd:simpleType>"]
[]
["</xsd:schema>"]